Cogmind - Beta 13 @@@ ROGUE MODE // 2024.04.11 @ 15:26:12 Player: Baxter Result: Destroyed 0b10! Performance ------------- Evolutions (9) 4500 Regions Visited (20) 4000 Robots Destroyed (135) 675 Value Destroyed (3578) 3578 Prototype IDs (34) 680 Alien Tech Used (4) 800 Bonus (13445) 13445 TOTAL SCORE: 27678 Bonus ------- Follower Combat Kills 280 Entered DSFs 500 Met Warlord at Base 500 MAIN.C Attacked Warlord 500 Met Warlord at Research 2000 Met Sigix 2000 Escaped with Sigix 5000 Win 3000 Friendly Fire -335 Cogmind --------- Core Integrity 1076/1600 Matter 300/300 Energy 100/100 System Corruption 0% Temperature Cool (2) Movement Flying (45) Location Tau Ceti IV Orbit Parts ------- > --- POWER (2) -------- (None) > --- PROPULSION (6) --- Impulse Thruster Array > --- UTILITY (13) ----- Spectral Analyzer Advanced Signal Interpreter Advanced ECM Suite Hacking Suite Hacking Suite Advanced Hacking Suite Ghost Barrier Advanced Corruption Screen > --- WEAPON (4) ------- Vibroblade Force Lance > --- INVENTORY (5) ---- Micro Antimatter Reactor Matter Compressor (250) Phase Redirector Sigix Containment Pod Peak State ------------ > --- POWER ------------ Micro Antimatter Reactor Micro Antimatter Reactor > --- PROPULSION ------- Field Propulsion Array Field Propulsion Array Impulse Thruster Array > --- UTILITY ---------- Structural Scanner Spectral Analyzer Improved Sensor Array Seismic Detector Improved Transmission Jammer Hacking Suite Hacking Suite Hacking Suite Advanced Hacking Suite Ghost Barrier Advanced Corruption Screen > --- WEAPON ----------- Gamma Bomb Array Core Stripper Vibroblade > --- INVENTORY -------- Matter Compressor Improved Light Armor Plating Improved System Guard Advanced System Restoration Module Force Lance [Rating: 158] Favorites ----------- Power Micro Antimatter Reactor Engine Heavy Deuterium Engine Power Core Light Nuclear Core Reactor Micro Antimatter Reactor Propulsion Armored Wheel Treads Medium Treads Wheel Armored Wheel Hover Unit Aerolev Unit Flight Unit Improved VTOL Module Utility Hacking Suite Device Seismic Detector Storage Large Storage Unit Processor Advanced Visual Processing Unit Hackware Hacking Suite Protection Light Armor Plating Artifact Phase Redirector Weapon Flak Cannon Energy Gun Heavy EM Pulse Gun Energy Cannon Heavy Ion Cannon Ballistic Gun Light Assault Rifle Ballistic Cannon Flak Cannon Launcher Gamma Bomb Array Impact Weapon Impact Mace Slashing Weapon Vibroblade Piercing Weapon Spear Special Melee Weapon Datajack Build | -11 -10 -9 -9 -8 -8 -7 -7 -7 -7 -6 -5 -5 -5 -4 -4 -3 -3 -2 -2 -1 ------- Run | Yrd Mat Mat Min Mat Sto Fac Was Fac DSF Fac Fac Upp War Pro Fac Res Tes Res Qua Acc Slots Evolved 18 | . . 2 . 2 . 2 . . . 2 2 . . . 2 2 . 2 . 2 Power 1 | . . . . . . . . . . . . . . . . . . 1 . . Propulsion 4 | . . . . 1 . . . . . 1 1 . . . . 1 . . . . Utility 11 | . . 1 . . . 2 . . . 1 1 . . . 2 1 . 1 . 2 Weapon 2 | . . 1 . 1 . . . . . . . . . . . . . . . . Parts Attached 183 | 7 4 7 4 28 13 10 2 4 6 31 9 1 1 2 2 . 19 13 13 7 Power 24 | 1 1 1 2 2 1 . . 2 . 3 . 1 . . . . 1 7 . 2 Engine 9 | 1 . 1 . 1 1 . . 2 . 2 . 1 . . . . . . . . Core 5 | . 1 . 2 1 . . . . . 1 . . . . . . . . . . Reactor 10 | . . . . . . . . . . . . . . . . . 1 7 . 2 Propulsion 43 | 2 . 2 . 11 1 . 1 1 3 10 3 . . 1 . . 2 2 3 1 Treads 13 | 1 . 1 . 3 1 . . 1 3 3 . . . . . . . . . . Leg . | . . . . . . . . . . . . . . . . . . . . . Wheel 10 | 1 . 1 . 6 . . 1 . . . 1 . . . . . . . . . Hover 1 | . . . . 1 . . . . . . . . . . . . . . . . Flight 19 | . . . . 1 . . . . . 7 2 . . 1 . . 2 2 3 1 Utility 70 | 2 2 1 1 5 7 3 1 . 1 14 2 . . . 2 . 15 2 8 4 Device 39 | 1 1 . . 2 2 2 1 . . 8 1 . . . 1 . 10 1 7 2 Storage 6 | 1 1 . . 1 1 . . . . 1 . . . . . . 1 . . . Processor 7 | . . . . . 1 1 . . . 1 . . . . . . 2 . . 2 Hackware 6 | . . . . . . . . . . 4 . . . . . . 2 . . . Protection 11 | . . 1 1 2 3 . . . 1 . 1 . . . 1 . . 1 . . Artifact 1 | . . . . . . . . . . . . . . . . . . . 1 . Weapon 46 | 2 1 3 1 10 4 7 . 1 2 4 4 . 1 1 . . 1 2 2 . Energy Gun 3 | . . . . 2 1 . . . . . . . . . . . . . . . Energy Cannon 4 | . . . . . . . . . . . 2 . 1 1 . . . . . . Ballistic Gun 15 | 2 1 3 1 5 . 2 . . . . 1 . . . . . . . . . Ballistic Cannon 6 | . . . . 2 2 1 . . 1 . . . . . . . . . . . Launcher 3 | . . . . . . . . . 1 1 . . . . . . . 1 . . Special Weapon . | . . . . . . . . . . . . . . . . . . . . . Impact Weapon 5 | . . . . . . 1 . 1 . 1 1 . . . . . . . 1 . Slashing Weapon 3 | . . . . 1 1 . . . . . . . . . . . 1 . . . Piercing Weapon 6 | . . . . . . 3 . . . 1 . . . . . . . 1 1 . Special Melee Weapon 1 | . . . . . . . . . . 1 . . . . . . . . . . Unidentified Prototypes 19 | . . . . 2 2 1 . 1 . 1 . . 1 . . . 7 . 4 . Parts Lost 38 | . 1 . . 14 . . 2 . 2 5 1 . . 1 . . 1 . . 11 Power 4 | . . . . 1 . . . . . . 1 . . . . . . . . 2 Propulsion 9 | . . . . 3 . . 1 . 1 1 . . . 1 . . . . . 2 Utility 15 | . 1 . . 3 . . . . 1 3 . . . . . . 1 . . 6 Weapon 10 | . . . . 7 . . 1 . . 1 . . . . . . . . . 1 Highest Loss Streak 7 | . 1 . . 7 . . 1 . 2 2 1 . . 1 . . 1 . . 5 To Critical Strikes . | . . . . . . . . . . . . . . . . . . . . . Average Slot Usage (%) 89 | . 89 99 100 93 100 99 78 84 90 83 91 89 88 89 84 76 78 74 82 76 Engine 2 | . 2 . 1 1 1 7 4 7 7 5 . 1 5 5 5 4 1 . . . Core 3 | . 11 10 9 6 7 . . . . . 4 . . . . . . . . . Reactor 1 | . . . . . . . . . . . . . . . . . 2 5 8 7 Treads 8 | . 14 11 11 8 15 15 4 7 15 21 . . . . . . . . . . Wheel 6 | . 14 11 11 17 11 7 15 15 6 . 4 5 5 3 . . . . . . Flight 7 | . . . . . . . . . . 4 23 23 23 25 21 19 21 15 13 11 Device 9 | . 4 11 1 5 3 11 15 15 4 7 9 11 11 11 15 14 14 16 17 14 Storage 5 | . 14 11 11 16 9 7 7 7 7 5 . . . . . . . . . . Processor 7 | . . . . . 9 15 15 15 15 11 5 5 5 5 5 4 7 8 8 11 Hackware 8 | . . . . . . . . . . 3 23 23 23 23 21 19 19 21 21 19 Protection 4 | . . 10 20 2 5 2 . . 5 1 1 . . . 5 4 3 . . . Ballistic Gun 8 | . 28 33 33 12 9 9 5 . . . 1 . . . . . . . . . Ballistic Cannon 4 | . . . . 14 20 12 1 . 5 5 . . . . . . . . . . Impact Weapon 1 | . . . . . . . . 7 7 5 3 5 5 5 5 4 1 . . . Slashing Weapon 1 | . . . . 2 6 2 . . . . . . . . . . 2 4 4 4 Piercing Weapon 2 | . . . . . . 3 7 7 7 5 5 5 5 5 5 4 1 . 4 4 Naked Turns . | . . . . . . . . . . . . . . . . . . . . . Heaviest Build 56 | 14 29 41 41 50 49 49 45 38 55 56 22 28 20 28 24 24 24 42 56 47 Greatest Support 112 | 20 20 20 12 40 24 42 24 24 84 112 22 22 22 29 24 24 41 46 46 47 Greatest Overweight (x) 4 | . 1 3 3 3 4 4 1 1 4 . . 1 . . . . . 1 1 1 Average Overweight (x) . | . . 1 3 1 2 3 . 1 . . . . . . . . . . . . Largest Inventory Capacity 15 | 8 15 15 15 15 15 15 15 15 15 15 5 5 5 5 5 5 5 5 5 5 Average Capacity 10 | 7 8 15 15 15 15 15 15 15 15 13 5 5 5 5 5 5 5 5 5 5 Most Carried 15 | 6 9 15 15 15 15 15 15 15 15 15 5 5 5 5 4 5 5 5 5 5 Average Carried 10 | 3 5 12 14 13 14 14 15 14 14 12 4 5 5 4 3 4 4 4 4 4 Final Capacity 15 | 8 15 15 15 15 15 15 15 15 15 5 5 5 5 5 5 5 5 5 5 5 Final Carried 15 | 4 9 15 15 15 15 15 15 15 15 5 5 5 5 5 4 5 5 5 5 5 Class Distribution -------------------- 21% | Hacker-Sprinter 20% | Mutant 13% | Wizard-Mutant 13% | Gunner 9% | Tank 9% | Scavenger-Tank 3% | Skirmisher Dominant Class ---------------- Mutant | -10/Materials Tank | -9/Materials Scavenger-Tank | -9/Mines Gunner | -8/Materials Skirmisher | -8/Storage Gunner | -7/Factory Mutant | -7/Waste Mutant | -7/Factory Mutant | -7/DSF Mutant | -6/Factory Hacker-Sprinter | -5/Factory Hacker-Mutant | -5/Upper Caves Hacker-Sprinter | -5/Warlord Hacker-Sprinter | -4/Proximity Caves Hacker-Sprinter | -4/Factory Hacker-Sprinter | -3/Research Hacker-Sprinter | -3/Testing Wizard-Sprinter | -2/Research Wizard-Mutant | -2/Quarantine Wizard-Mutant | -1/Access Resources | -11 -10 -9 -9 -8 -8 -7 -7 -7 -7 -6 -5 -5 -5 -4 -4 -3 -3 -2 -2 -1 ----------- Run | Yrd Mat Mat Min Mat Sto Fac Was Fac DSF Fac Fac Upp War Pro Fac Res Tes Res Qua Acc Matter Collected 4216 | 214 171 360 510 693 487 151 . . 127 503 95 201 . 109 20 . 132 198 45 200 Remotely . | . . . . . . . . . . . . . . . . . . . . . Salvage Created 4659 | 14 236 436 628 825 282 208 . . 196 653 112 . . 473 65 . 132 143 . 256 Parts 239 | 3 16 31 42 40 26 11 . . 8 30 8 . . . 4 . 5 5 . 10 Haulers Intercepted 7 | . . . . 1 2 . . . 1 1 . . . . . . . 1 . 1 Recyclers Shooed 3 | . . 1 1 . . 1 . . . . . . . . . . . . . . Parts Field Recycled . | . . . . . . . . . . . . . . . . . . . . . Retrieved Matter . | . . . . . . . . . . . . . . . . . . . . . Parts Self-Destructed 2 | . . . . . . . . . . . . 2 . . . . . . . . Prevented 10 | . . . . . . . . . . . . 10 . . . . . . . . Kills | -11 -10 -9 -9 -8 -8 -7 -7 -7 -7 -6 -5 -5 -5 -4 -4 -3 -3 -2 -2 -1 ------- Run | Yrd Mat Mat Min Mat Sto Fac Was Fac DSF Fac Fac Upp War Pro Fac Res Tes Res Qua Acc Combat Hostiles Destroyed 74 | . 6 6 14 19 8 4 . . 7 7 . . . . 1 . . . . 2 Melee 6 | . . . . . . . . . . 3 . . . . 1 . . . . 2 Guns 39 | . 6 6 14 8 4 1 . . . . . . . . . . . . . . Cannons 16 | . . . . 10 4 2 . . . . . . . . . . . . . . AOE 9 | . . . . . . 1 . . 6 2 . . . . . . . . . . Classes Destroyed 15 | 1 4 4 . 2 . . . . 3 1 . . . . . . . . . . Worker 11 | . 1 . 3 1 1 . . . . 3 2 . . . . . . . . . Builder 16 | . . 2 . 1 . 2 . . . 9 2 . . . . . . . . . Tunneler 7 | 1 . . 4 . . . . . . 1 . . . . . . . . . 1 Hauler 7 | . . . . 1 2 . . . 1 1 . . . . . . . 1 . 1 Recycler 5 | . . 1 . 1 . 1 . . . 1 . . . . . . 1 . . . Operator 6 | . 1 . . 1 . . . . . 1 2 . . . . . . 1 . . Watcher 9 | . . 3 . 2 1 . . . . 2 . . . . . . . 1 . . Swarmer 19 | . 3 . 4 7 4 . . . . 1 . . . . . . . . . . Cutter 3 | . . . . . . . . . 3 . . . . . . . . . . . Grunt 30 | . 3 3 10 8 2 3 . . . 1 . . . . . . . . . . Duelist 1 | . . . . 1 . . . . . . . . . . . . . . . . Sentry 11 | . . 3 . 3 2 1 . . . 1 . . . . 1 . . . . . Specialist 3 | . . . . . . . . . 3 . . . . . . . . . . . Hunter 3 | . . . . . . . . . 1 2 . . . . . . . . . . Programmer 4 | . . . . . . . . . . 2 . . . . . . . . . 2 Best Kill Streak 8 | 1 6 3 4 5 8 3 . . 4 7 1 . . . 1 . 1 1 . 3 Combat Bots Only 5 | . 5 2 4 4 4 2 . . 3 2 . . . . 1 . . . . 2 Max Kills in Single Turn 7 | 1 1 2 2 2 2 1 . . 2 7 1 . . . 1 . 1 1 . 1 Gunslinging 1 | . . 1 1 . . . . . . . . . . . . . . . . . Exploded 2 | . . . . . . 1 . . 2 2 . . . . . . . . . . Melee 1 | . . . . . . . . . . 1 . . . . 1 . . . . 1 Uniques/NPCs Destroyed . | . . . . . . . . . . . . . . . . . . . . . Combat | -11 -10 -9 -9 -8 -8 -7 -7 -7 -7 -6 -5 -5 -5 -4 -4 -3 -3 -2 -2 -1 -------- Run | Yrd Mat Mat Min Mat Sto Fac Was Fac DSF Fac Fac Upp War Pro Fac Res Tes Res Qua Acc Hostile Shots Fired 632 | . 33 14 49 107 25 23 2 . 33 139 55 . . 13 5 . 2 . 8 124 Missed 226 | . 12 3 13 19 9 11 . . 11 41 26 . . 11 4 . 2 . 5 59 Damage Taken 6494 | . 199 157 385 1311 207 217 100 28 554 1228 451 . . 42 28 . . 38 67 1482 Core 1408 | . 36 24 19 84 9 67 51 . 51 265 262 . . . . . . 16 . 524 Absorbed by Shields . | . . . . . . . . . . . . . . . . . . . . . Regen/Repaired (Parts) 24 | . . . . . . . . . . . . . 24 . . . . . . . Core Remaining (%) 85 | 100 85 . 89 . 83 . . . 75 68 . . . 73 100 . 100 . 98 67 Volleys Fired 195 | 1 26 23 53 44 20 6 . . 11 3 4 . . 2 . . . 1 . 1 Largest 4 | 2 2 3 3 4 4 4 . . 1 1 1 . . 1 . . . 1 . 1 Hottest 158 | 40 40 63 63 158 157 136 . . 48 33 65 . . 65 . . . 80 . 80 Shots Fired 533 | 2 52 69 159 144 63 21 1 . 10 4 4 . . 2 . . . 1 . 1 Gun 402 | 2 52 69 159 94 14 11 1 . . . . . . . . . . . . . Cannon 117 | . . . . 50 49 10 . . 1 1 4 . . 2 . . . . . . Launcher 14 | . . . . . . . . . 9 3 . . . . . . . 1 . 1 Special . | . . . . . . . . . . . . . . . . . . . . . Kinetic 479 | 2 52 69 159 110 63 21 1 . 1 1 . . . . . . . . . . Thermal 6 | . . . . . . . . . . . 4 . . 2 . . . . . . Explosive 12 | . . . . . . . . . 9 3 . . . . . . . . . . Electromagnetic 36 | . . . . 34 . . . . . . . . . . . . . 1 . 1 Robot Hit Streak 10 | 1 6 10 10 9 6 7 2 . 6 2 . . . . . . . . . 1 Robot Miss Streak 13 | 1 6 2 12 13 10 2 1 . 1 2 . . . . . . . . . 3 Penetration Max . | . . . . . . . . . . . . . . . . . . . . . Secondary Targets 4 | . 1 1 2 . . . . . . . . . . . . . . . . . Max Gunslinging Chain 1 | . 1 1 1 . . . . . . . . . . . . . . . . . Shots Hit Robots 407 | 1 23 42 89 93 40 20 1 . 10 36 14 . . 16 2 . 1 4 . 15 Core Hits 226 | 1 12 21 38 60 33 16 . . 9 18 4 . . 3 1 . 1 2 . 7 Critical Kills 5 | . . . . . . 1 . . . 3 . . . . 1 . . . . . Critical Parts Destroyed 17 | . . . . . . 1 . . 1 10 . . . 4 1 . . . . . Critical Strikes 31 | . . . . 1 . 3 . . 2 15 1 . . 5 2 . . . . 2 Destroy 1 | . . . . . . 1 . . . . . . . . . . . . . . Blast 1 | . . . . . . . . . 1 . . . . . . . . . . . Corrupt 1 | . . . . 1 . . . . . . . . . . . . . . . . Smash 23 | . . . . . . 1 . . 1 15 . . . 4 2 . . . . . Impale 5 | . . . . . . 1 . . . . 1 . . 1 . . . . . 2 Melee Attacks 315 | . . . . 4 6 13 . . 2 72 56 . . 18 3 1 29 28 15 68 Impact 102 | . . . . . . 3 . . 2 60 18 . . 13 3 1 2 . . . Slashing 86 | . . . . 4 6 . . . . . . . . . . . 27 27 3 19 Piercing 127 | . . . . . . 10 . . . 12 38 . . 5 . . . 1 12 49 Sneak Attacks 29 | . . . . 1 1 4 . . 1 8 6 . . . . . 1 3 . 4 Combat Hostiles . | . . . . . . . . . . . . . . . . . . . . . Follow-up Attacks 16 | . . . . . . . . . . 5 2 . . 4 . . . . . 5 Damage Inflicted 11926 | 13 254 513 1032 1629 667 704 . . 807 2721 757 . . 1460 67 . 101 407 . 794 Guns 3046 | 13 254 513 1032 964 142 128 . . . . . . . . . . . . . . Cannons 1173 | . . . . 522 431 169 . . 26 25 . . . . . . . . . . Explosions 1830 | . . . . 76 . 112 . . 608 1022 . . . . . . . . . 12 Melee 5877 | . . . . 67 94 295 . . 173 1674 757 . . 1460 67 . 101 407 . 782 Ramming . | . . . . . . . . . . . . . . . . . . . . . Kinetic 3875 | 13 254 513 1032 1142 573 297 . . 26 25 . . . . . . . . . . Thermal 912 | . . . . . . 112 . . . 800 . . . . . . . . . . Explosive 906 | . . . . 76 . . . . 608 222 . . . . . . . . . . Electromagnetic 356 | . . . . 344 . . . . . . . . . . . . . . . 12 Impact 3455 | . . . . . . 104 . . 173 1537 308 . . 1266 67 . . . . . Slashing 1004 | . . . . 67 94 . . . . . . . . . . . 101 407 . 335 Piercing 1418 | . . . . . . 191 . . . 137 449 . . 194 . . . . . 447 Highest Corruption 14 | . . . . . . . 13 14 14 5 . . . . . . . . . . Average Corruption 6 | . . . . . . . 9 13 14 3 . . . . . . . . . . Corruption Purged 3 | . . . . . . . . . . 3 . . . . . . . . . . Corruption Blocked 18 | . . . . . . . . . . . . . . . . . . 4 3 11 Effects 33 | . . . . . . . 6 5 8 14 . . . . . . . . . . Message Errors 8 | . . . . . . . . 2 2 4 . . . . . . . . . . Matter Fused 9 | . . . . . . . 2 1 1 5 . . . . . . . . . . Heat Flow Errors 4 | . . . . . . . . 1 . 3 . . . . . . . . . . Energy Discharges 4 | . . . . . . . 1 . 3 . . . . . . . . . . . Parts Rejected 1 | . . . . . . . 1 . . . . . . . . . . . . . Data Loss (minor) 2 | . . . . . . . 1 1 . . . . . . . . . . . . Data Loss (major) 2 | . . . . . . . . . 1 1 . . . . . . . . . . Misfires 2 | . . . . . . . 1 . . 1 . . . . . . . . . . Weapon Failures 1 | . . . . . . . . . 1 . . . . . . . . . . . Overload Shots . | . . . . . . . . . . . . . . . . . . . . . Overflow Damage 3164 | . . . . 8 . 215 . . 139 1070 218 . . 1242 41 . . 145 . 86 Projectiles 128 | . . . . 8 . 27 . . . . . . . 93 . . . . . . Explosions 374 | . . . . . . 71 . . 6 297 . . . . . . . . . . Melee 2662 | . . . . . . 117 . . 133 773 218 . . 1149 41 . . 145 . 86 Knockbacks 35 | . . . . 12 10 7 . . 1 5 . . . . . . . . . . Impact 7 | . . . . . . 1 . . 1 5 . . . . . . . . . . Kinetic 27 | . . . . 12 10 5 . . . . . . . . . . . . . . Secondary 1 | . . . . . . 1 . . . . . . . . . . . . . . Self-Inflicted Damage 335 | . . . . 62 . 57 . . . 153 . . . . . . . 38 . 25 Shots 13 | . . . . 1 . 1 . . . 4 . . . . . . . 4 . 3 Rammed . | . . . . . . . . . . . . . . . . . . . . . Targets Rammed . | . . . . . . . . . . . . . . . . . . . . . Kicked . | . . . . . . . . . . . . . . . . . . . . . Crushed . | . . . . . . . . . . . . . . . . . . . . . Highest Temperature 485 | . 22 66 336 485 294 127 . 105 . 245 56 . . 32 . . . 42 . 36 Average Temperature 96 | . 6 19 75 163 110 45 . 64 . 102 27 . . 14 . . . 24 . 23 Received Heat Transfer 1506 | . 69 75 162 639 90 45 . . 27 219 135 . . . . . . . . 45 Effects 8 | . . . . 6 2 . . . . . . . . . . . . . . . Shutdowns 1 | . . . . 1 . . . . . . . . . . . . . . . . Interference 4 | . . . . 2 2 . . . . . . . . . . . . . . . Matter Decay 1 | . . . . 1 . . . . . . . . . . . . . . . . Short Circuit 2 | . . . . 2 . . . . . . . . . . . . . . . . Siege Activations . | . . . . . . . . . . . . . . . . . . . . . Robots Corrupted 1 | . . . . 1 . . . . . . . . . . . . . . . . Combat Hostiles 1 | . . . . 1 . . . . . . . . . . . . . . . . Parts Fried 20 | . . . . 1 . 1 . . 2 10 . . . 6 . . . . . . Impact Corruptions 108 | . . . . . . 5 . . 5 22 6 . . 69 1 . . . . . Robots Melted . | . . . . . . . . . . . . . . . . . . . . . Combat Hostiles . | . . . . . . . . . . . . . . . . . . . . . Parts Melted 1 | . . . . . . . . . . 1 . . . . . . . . . . Heat Transferred 550 | . . . . . . 50 . . . 500 . . . . . . . . . . Parts Sabotaged . | . . . . . . . . . . . . . . . . . . . . . Parts Stolen . | . . . . . . . . . . . . . . . . . . . . . Parts Stripped . | . . . . . . . . . . . . . . . . . . . . . Power Chain Reactions . | . . . . . . . . . . . . . . . . . . . . . Alert | -11 -10 -9 -9 -8 -8 -7 -7 -7 -7 -6 -5 -5 -5 -4 -4 -3 -3 -2 -2 -1 ------- Run | Yrd Mat Mat Min Mat Sto Fac Was Fac DSF Fac Fac Upp War Pro Fac Res Tes Res Qua Acc Peak Influence 584 | 5 156 332 313 285 405 188 90 77 290 584 307 . . . 218 146 219 232 145 323 Initial 238 | . 3 65 78 59 50 120 65 63 53 151 238 . . . 171 114 81 80 34 36 Average 157 | 1 123 200 207 138 236 109 74 67 152 220 195 . . . 183 132 95 153 69 104 Maximum Alert Level 2 | . . 1 1 1 2 . . . 1 2 1 . . . 1 . 1 1 . 1 Low Security (%) 74 | 100 100 49 50 87 39 100 100 100 67 63 49 . . . 81 100 95 86 100 84 Level 1 23 | . . 50 49 12 57 . . . 32 21 50 . . . 18 . 4 13 . 15 Level 2 2 | . . . . . 3 . . . . 15 . . . . . . . . . . Level 3 . | . . . . . . . . . . . . . . . . . . . . . Level 4 . | . . . . . . . . . . . . . . . . . . . . . Level 5 . | . . . . . . . . . . . . . . . . . . . . . High Security . | . . . . . . . . . . . . . . . . . . . . . Max Security . | . . . . . . . . . . . . . . . . . . . . . Squads Dispatched 30 | . . 2 . 2 1 3 . . 2 8 4 . . 1 . . 1 2 1 3 Investigation 11 | . . 1 . 1 1 2 . . . 2 3 . . . . . . 1 . . Extermination 7 | . . . . . . . . . . 3 . . . . . . 1 . 1 2 Reinforcement 10 | . . 1 . 1 . 1 . . 2 2 1 . . . . . . 1 . 1 Assault 2 | . . . . . . . . . . 1 . . . 1 . . . . . . Garrison . | . . . . . . . . . . . . . . . . . . . . . Intercept . | . . . . . . . . . . . . . . . . . . . . . Searches Triggered . | . . . . . . . . . . . . . . . . . . . . . Construction Impeded 2 | . . . . . . . . . . 1 1 . . . . . . . . . Haulers Reinforced 1 | . . . . . . . . . . 1 . . . . . . . . . . Active Scanning Responses . | . . . . . . . . . . . . . . . . . . . . . Cargo Convoy Interrupts . | . . . . . . . . . . . . . . . . . . . . . Stealth | -11 -10 -9 -9 -8 -8 -7 -7 -7 -7 -6 -5 -5 -5 -4 -4 -3 -3 -2 -2 -1 --------- Run | Yrd Mat Mat Min Mat Sto Fac Was Fac DSF Fac Fac Upp War Pro Fac Res Tes Res Qua Acc Distress Signals 13 | . . 2 . 1 4 . . . . 1 . . . . . . . 5 . . Communications Jammed . | . . . . . . . . . . . . . . . . . . . . . Distress Signals . | . . . . . . . . . . . . . . . . . . . . . Times Spotted 222 | . 8 12 16 26 19 6 5 . 9 27 24 3 7 12 1 . 9 3 5 30 Peak Tracking Total 12 | . 3 3 6 7 5 1 4 . 3 9 10 3 12 9 1 . 4 2 4 11 Tactical Retreats 31 | . . . 1 1 1 . 1 . 2 7 4 2 . 3 . . 2 1 1 5 Traps | -11 -10 -9 -9 -8 -8 -7 -7 -7 -7 -6 -5 -5 -5 -4 -4 -3 -3 -2 -2 -1 ------- Run | Yrd Mat Mat Min Mat Sto Fac Was Fac DSF Fac Fac Upp War Pro Fac Res Tes Res Qua Acc Traps Triggered 5 | . . . . . . 2 . 1 . 2 . . . . . . . . . . Indirectly . | . . . . . . . . . . . . . . . . . . . . . Trap Hack Attempts . | . . . . . . . . . . . . . . . . . . . . . Triggered . | . . . . . . . . . . . . . . . . . . . . . Disarmed 5 | . . . . . . . . . . . 5 . . . . . . . . . Reprogrammed . | . . . . . . . . . . . . . . . . . . . . . Reused . | . . . . . . . . . . . . . . . . . . . . . Traps Extracted . | . . . . . . . . . . . . . . . . . . . . . Installed . | . . . . . . . . . . . . . . . . . . . . . Triggered 6 | . . . . . . . . . . . . 1 5 . . . . . . . Machines | -11 -10 -9 -9 -8 -8 -7 -7 -7 -7 -6 -5 -5 -5 -4 -4 -3 -3 -2 -2 -1 ---------- Run | Yrd Mat Mat Min Mat Sto Fac Was Fac DSF Fac Fac Upp War Pro Fac Res Tes Res Qua Acc Machines Disabled 30 | . . . 1 1 1 3 . . 1 11 . . . . . . 3 4 5 . Max in Single Turn 11 | . . . 1 1 1 3 . . 1 11 . . . . . . 1 1 1 . Machines Repaired . | . . . . . . . . . . . . . . . . . . . . . Machines Dismantled . | . . . . . . . . . . . . . . . . . . . . . Machines Sabotaged . | . . . . . . . . . . . . . . . . . . . . . Overloaded Fab Kills . | . . . . . . . . . . . . . . . . . . . . . Hacking | -11 -10 -9 -9 -8 -8 -7 -7 -7 -7 -6 -5 -5 -5 -4 -4 -3 -3 -2 -2 -1 --------- Run | Yrd Mat Mat Min Mat Sto Fac Was Fac DSF Fac Fac Upp War Pro Fac Res Tes Res Qua Acc Machines Accessed 61 | . 3 2 . 7 7 4 . 2 . 4 7 . 8 . . . 7 1 5 4 Terminals 46 | . 3 2 . 6 6 2 . 2 . 4 6 . . . . . 6 . 5 4 Fabricators 4 | . . . . . . 2 . . . . . . . . . . 1 1 . . Repair Stations . | . . . . . . . . . . . . . . . . . . . . . Recycling Units 1 | . . . . . 1 . . . . . . . . . . . . . . . Scanalyzers 2 | . . . . 1 . . . . . . 1 . . . . . . . . . Garrison Access . | . . . . . . . . . . . . . . . . . . . . . Total Hacks 191 | . 14 4 . 33 28 10 . 5 . 12 28 . 12 . . . 25 2 9 9 Successful 124 | . 7 2 . 20 13 8 . 2 . 4 25 . 12 . . . 17 2 8 4 Failed 67 | . 7 2 . 13 15 2 . 3 . 8 3 . . . . . 8 . 1 5 Catastrophic 8 | . . 1 . 1 2 1 . . . 1 . . . . . . . . . 2 Database Lockouts . | . . . . . . . . . . . . . . . . . . . . . Manual 105 | . 13 4 . 22 14 3 . 2 . 10 16 . 1 . . . 9 . 5 6 Terminals 163 | . 14 4 . 29 26 6 . 5 . 12 26 . . . . . 23 . 9 9 Fabricators 8 | . . . . . . 4 . . . . . . . . . . 2 2 . . Repair Stations . | . . . . . . . . . . . . . . . . . . . . . Recycling Units 2 | . . . . . 2 . . . . . . . . . . . . . . . Scanalyzers 6 | . . . . 4 . . . . . . 2 . . . . . . . . . Garrison Access . | . . . . . . . . . . . . . . . . . . . . . Terminal Hacks 70 | . 2 . . 9 6 3 . 1 . . 17 . 12 . . . 12 . 6 2 Record 15 | . . . . . . 2 . . . . 3 . 6 . . . . . 3 1 Part Schematic 2 | . . . . . . . . . . . 1 . . . . . 1 . . . Robot Analysis 5 | . 2 . . 1 1 1 . . . . . . . . . . . . . . Prototype ID Bank 8 | . . . . . . . . . . . 2 . 4 . . . 2 . . . Open Door 6 | . . . . . 1 . . . . . . . 2 . . . 1 . 1 1 Open DSF 1 | . . . . . . . . 1 . . . . . . . . . . . . Level Access Points 3 | . . . . . 1 . . . . . 1 . . . . . . . 1 . Branch Access Points 3 | . . . . 1 . . . . . . 1 . . . . . 1 . . . Emergency Access Points 2 | . . . . . . . . . . . 1 . . . . . 1 . . . Terminal Index 2 | . . . . . . . . . . . 1 . . . . . 1 . . . Fabricator Index 1 | . . . . . . . . . . . 1 . . . . . . . . . Recycling Unit Index 1 | . . . . 1 . . . . . . . . . . . . . . . . Alert Level 7 | . . . . 2 2 . . . . . 2 . . . . . . . 1 . Unreport Threat 4 | . . . . 1 1 . . . . . 1 . . . . . 1 . . . Disarm Traps 1 | . . . . . . . . . . . 1 . . . . . . . . . Dispatch Records 1 | . . . . . . . . . . . 1 . . . . . . . . . Transport Status 3 | . . . . 2 . . . . . . 1 . . . . . . . . . Hauler Manifests 1 | . . . . . . . . . . . . . . . . . 1 . . . Registered Prototypes 1 | . . . . . . . . . . . . . . . . . 1 . . . Zone Layout 2 | . . . . 1 . . . . . . . . . . . . 1 . . . Protovariant Controls 1 | . . . . . . . . . . . . . . . . . 1 . . . Fabricator Hacks 6 | . . . . . . 3 . . . . . . . . . . 1 2 . . Network Status 2 | . . . . . . 1 . . . . . . . . . . 1 . . . Load Schematic 2 | . . . . . . 1 . . . . . . . . . . . 1 . . Build 2 | . . . . . . 1 . . . . . . . . . . . 1 . . Repair Station Hacks . | . . . . . . . . . . . . . . . . . . . . . Recycling Unit Hacks 2 | . . . . . 2 . . . . . . . . . . . . . . . Process 1 | . . . . . 1 . . . . . . . . . . . . . . . Retrieve Matter 1 | . . . . . 1 . . . . . . . . . . . . . . . Scanalyzer 6 | . . . . 4 . . . . . . 2 . . . . . . . . . Insert Component 3 | . . . . 2 . . . . . . 1 . . . . . . . . . Analyze 3 | . . . . 2 . . . . . . 1 . . . . . . . . . Garrison Access Hacks . | . . . . . . . . . . . . . . . . . . . . . Unauthorized Hacks 40 | . 5 2 . 7 5 2 . 1 . 4 6 . . . . . 4 . 2 2 Terminals 40 | . 5 2 . 7 5 2 . 1 . 4 6 . . . . . 4 . 2 2 Assimilate 3 | . 1 . . . . . . . . 1 . . . . . . 1 . . . Botnet 35 | . 3 2 . 6 5 2 . 1 . 3 6 . . . . . 3 . 2 2 Operators 2 | . 1 . . 1 . . . . . . . . . . . . . . . . Fabricators . | . . . . . . . . . . . . . . . . . . . . . Repair Stations . | . . . . . . . . . . . . . . . . . . . . . Recycling Units . | . . . . . . . . . . . . . . . . . . . . . Scanalyzers . | . . . . . . . . . . . . . . . . . . . . . Garrison Access . | . . . . . . . . . . . . . . . . . . . . . Data Cores Recovered 3 | . . . . . . . . . . . 2 . . . . . . . 1 . Used 1 | . . . . . . . . . . . . . . . . . . . 1 . Hacking Detections 44 | . 3 2 . 6 6 3 . 1 . 4 6 . . . . . 6 1 2 4 Full Trace Events 11 | . . 1 . 1 1 2 . . . 2 3 . . . . . . 1 . . Feedback Events . | . . . . . . . . . . . . . . . . . . . . . Feedback Blocked . | . . . . . . . . . . . . . . . . . . . . . Robot Schematics Acquired . | . . . . . . . . . . . . . . . . . . . . . Robots Built . | . . . . . . . . . . . . . . . . . . . . . Authchips . | . . . . . . . . . . . . . . . . . . . . . Time . | . . . . . . . . . . . . . . . . . . . . . Total Robot Build Rating . | . . . . . . . . . . . . . . . . . . . . . Part Schematics Acquired 5 | . . . . 2 . . . . . . 2 . . . . . 1 . . . Parts Built 2 | . . . . . . . . . . . . . . . . . . 2 . . Authchips . | . . . . . . . . . . . . . . . . . . . . . Time 115 | . . . . . . 73 . . . . . . . . . . . 42 . . Total Part Build Rating 8 | . . . . . . . . . . . . . . . . . . 8 . . Parts Repaired . | . . . . . . . . . . . . . . . . . . . . . Time . | . . . . . . . . . . . . . . . . . . . . . Parts Recycled . | . . . . . . . . . . . . . . . . . . . . . Recycled Matter 335 | . . . . . 335 . . . . . . . . . . . . . . . Retrieved Matter 494 | . . . . . 494 . . . . . . . . . . . . . . . Retrieved Components . | . . . . . . . . . . . . . . . . . . . . . Parts Scanalyzed 3 | . . . . 2 . . . . . . 1 . . . . . . . . . Part Schematics Acquired 3 | . . . . 2 . . . . . . 1 . . . . . . . . . Parts Damaged . | . . . . . . . . . . . . . . . . . . . . . Bothacking | -11 -10 -9 -9 -8 -8 -7 -7 -7 -7 -6 -5 -5 -5 -4 -4 -3 -3 -2 -2 -1 ------------ Run | Yrd Mat Mat Min Mat Sto Fac Was Fac DSF Fac Fac Upp War Pro Fac Res Tes Res Qua Acc Used RIF Installer . | . . . . . . . . . . . . . . . . . . . . . Robots Hacked . | . . . . . . . . . . . . . . . . . . . . . Non-combat . | . . . . . . . . . . . . . . . . . . . . . Combat . | . . . . . . . . . . . . . . . . . . . . . Robot Hacks Applied . | . . . . . . . . . . . . . . . . . . . . . Relay Couplers Released . | . . . . . . . . . . . . . . . . . . . . . Fabnet Peak Effective % . | . . . . . . . . . . . . . . . . . . . . . Robots Rewired . | . . . . . . . . . . . . . . . . . . . . . Allies Hacked . | . . . . . . . . . . . . . . . . . . . . . Hacks Repelled . | . . . . . . . . . . . . . . . . . . . . . Allies | -11 -10 -9 -9 -8 -8 -7 -7 -7 -7 -6 -5 -5 -5 -4 -4 -3 -3 -2 -2 -1 -------- Run | Yrd Mat Mat Min Mat Sto Fac Was Fac DSF Fac Fac Upp War Pro Fac Res Tes Res Qua Acc Total Allies 13 | . 1 . . . 10 . . . . 1 . . . . . . 1 . . . Largest Group 10 | . 1 . . . 10 5 . . . 1 . . . . . . 1 1 . . Highest-Rated Group 173 | . 10 . . . 173 80 . . . 26 . . . . . . 26 26 . . Highest-Rated Ally 29 | . 10 . . . 29 16 . . . 26 . . . . . . 26 26 . . Total Orders . | . . . . . . . . . . . . . . . . . . . . . Ally Attacks 56 | . . . . . 43 13 . . . . . . . . . . . . . . Total Damage 751 | . . . . . 587 164 . . . . . . . . . . . . . . Kills 10 | . . . . . 9 1 . . . . . . . . . . . . . . Allies Corrupted 1 | . . . . . 1 . . . . . . . . . . . . . . . Allies Melted . | . . . . . . . . . . . . . . . . . . . . . Intel | -11 -10 -9 -9 -8 -8 -7 -7 -7 -7 -6 -5 -5 -5 -4 -4 -3 -3 -2 -2 -1 ------- Run | Yrd Mat Mat Min Mat Sto Fac Was Fac DSF Fac Fac Upp War Pro Fac Res Tes Res Qua Acc Robot Analysis Total 5 | . 2 . . 1 1 1 . . . . . . . . . . . . . . Derelict Logs Recovered 5 | . . . 2 . . . . . . . . 2 . 1 . . . . . . Drone Launches . | . . . . . . . . . . . . . . . . . . . . . Drone Recoveries . | . . . . . . . . . . . . . . . . . . . . . Exploration | -11 -10 -9 -9 -8 -8 -7 -7 -7 -7 -6 -5 -5 -5 -4 -4 -3 -3 -2 -2 -1 ------------- Run | Yrd Mat Mat Min Mat Sto Fac Was Fac DSF Fac Fac Upp War Pro Fac Res Tes Res Qua Acc Turns Passed 9598 | 69 336 503 973 857 686 779 149 187 168 1230 673 168 284 191 27 22 633 417 442 804 Spaces Moved 11267 | 37 230 234 588 549 378 488 145 170 97 1075 1637 214 811 469 52 63 996 905 506 1623 Core 2 | 2 . . . . . . . . . . . . . . . . . . . . Treads 698 | 23 31 71 . 9 . 2 . . 47 515 . . . . . . . . . . Legs . | . . . . . . . . . . . . . . . . . . . . . Wheels 2731 | 12 199 163 588 540 378 486 145 170 50 . . . . . . . . . . . Hover . | . . . . . . . . . . . . . . . . . . . . . Flight 7836 | . . . . . . . . . . 560 1637 214 811 469 52 63 996 905 506 1623 Fastest Speed 26 | 50 100 115 135 101 105 135 90 105 105 26 28 33 33 26 29 29 26 27 35 35 Average Speed 63 | 134 110 163 135 107 129 141 98 105 135 90 31 58 33 29 29 29 27 32 35 37 Slowest Speed 240 | 160 160 240 135 160 150 237 105 105 240 160 33 122 33 33 29 29 29 120 119 125 Overloaded Moves . | . . . . . . . . . . . . . . . . . . . . . Propulsion Burnouts . | . . . . . . . . . . . . . . . . . . . . . Robots Hopped 8 | . . . . . . . . . . . . . 5 . . . . . 3 . Cave-ins Triggered . | . . . . . . . . . . . . . . . . . . . . . Exploration Rate (%) 40 | 3 48 22 99 41 55 15 90 6 63 36 19 25 87 63 4 2 70 29 49 34 Regions Visited 20 Branch Regions 7 Pre-discovered Areas 1 | . . . 1 . . . . . . . . . . . . . . . . . Known Exits Taken 8 | . . . . 1 1 . . 1 . . 1 . . 1 1 . 1 . 1 . Unknown Exits Taken 9 | 1 1 1 1 . . . . . . 1 . 1 1 . . 1 . 1 . . Scrap Searched 2 | . . . 1 . . . . . . . . . . 1 . . . . . . Spaces Dug 142 | . . . . 3 1 6 . . . 29 31 . . 3 1 1 24 11 2 30 Terrain Destroyed 283 | . . . . 19 1 18 . . 52 90 31 . . 3 1 1 24 11 2 30 Melee 138 | . . . . 3 1 6 . . . 29 29 . . 1 1 1 24 11 2 30 Projectile 4 | . . . . . . . . . . . 2 . . 2 . . . . . . AOE 141 | . . . . 16 . 12 . . 52 61 . . . . . . . . . . Terrain Rammed . | . . . . . . . . . . . . . . . . . . . . . Walls Destroyed . | . . . . . . . . . . . . . . . . . . . . . Machines Disabled . | . . . . . . . . . . . . . . . . . . . . . Actions | -11 -10 -9 -9 -8 -8 -7 -7 -7 -7 -6 -5 -5 -5 -4 -4 -3 -3 -2 -2 -1 --------- Run | Yrd Mat Mat Min Mat Sto Fac Was Fac DSF Fac Fac Upp War Pro Fac Res Tes Res Qua Acc Total 12887 | 52 265 311 661 713 523 542 150 180 121 1220 1710 256 821 492 57 64 1310 986 740 1713 Wait 783 | . 1 34 9 64 88 11 4 . . 14 2 40 14 4 . . 247 29 192 30 Move 11234 | 36 229 233 587 548 377 488 144 169 96 1074 1636 213 802 468 51 62 995 904 500 1622 Hop 5 | . . . . . . . . . . . . . 3 . . . . . 2 . Pick Up 85 | 6 3 9 2 16 8 7 . 5 3 12 6 . . 1 1 1 . 2 3 . Fast Attach 73 | 7 2 . 1 7 1 1 1 . 2 8 2 1 1 1 . . 15 7 12 4 Attach 57 | . . 3 . 13 1 2 . 3 2 15 6 . . 1 2 . 1 5 2 1 Detach 16 | . 1 . 1 . . . . . . 2 3 1 . . . . 4 3 1 . Swap 58 | . 2 4 3 8 11 7 1 1 2 8 1 . . . . . 4 1 3 2 Drop 113 | 2 1 5 5 9 10 7 . 2 3 23 4 1 1 2 . . 15 7 13 3 Fire 195 | 1 26 23 53 44 20 6 . . 11 3 4 . . 2 . . . 1 . 1 Melee 267 | . . . . 4 6 13 . . 2 61 46 . . 13 3 1 29 27 12 50 Ram . | . . . . . . . . . . . . . . . . . . . . . Kick . | . . . . . . . . . . . . . . . . . . . . . Crush . | . . . . . . . . . . . . . . . . . . . . . Escape Stasis . | . . . . . . . . . . . . . . . . . . . . . Rewire 1 | . . . . . 1 . . . . . . . . . . . . . . . Trap . | . . . . . . . . . . . . . . . . . . . . . Miscellaneous . | . . . . . . . . . . . . . . . . . . . . . Route ------- -11/Scrapyard -10/Materials (discovered 2 exits: *Mat x2) -9/Materials (discovered 2 exits: *Mat / [*Min]) -9/Mines (discovered 4 exits: *Mat x2 / Exi / [*Zio]) -8/Materials (discovered 3 exits: *Fac / *Sto x2) -8/Storage -7/Factory -7/Waste -7/Factory -7/DSF -6/Factory -5/Factory (discovered 6 exits: Fac x4 / *Upp x2) -5/Upper Caves -5/Warlord -4/Proximity Caves -4/Factory -3/Research (discovered 2 exits: Res / *Tes) -3/Testing -2/Research (discovered 2 exits: *Acc / *Qua) -2/Quarantine -1/Access Tau Ceti IV Orbit History --------- Turn | Location | Event 29 | -11/Scrapyard | Discovered new exit (range 16) 70 | -11/Scrapyard | Entered Materials 255 | -10/Materials | Discovered new exit (range 13) 317 | -10/Materials | Build established: Mutant 335 | -10/Materials | Discovered new exit (range 7) 406 | -10/Materials | Entered another Materials area 406 | -9/Materials | Evolved 2 slots: Utility x1, Weapon x1 740 | -9/Materials | Build established: Tank 759 | -9/Materials | Discovered new exit (range 10) 838 | -9/Materials | Discovered new exit (range 16) 909 | -9/Materials | Entered Mines 910 | -9/Mines | A Derelict revealed a hidden shortcut to a safe place 1044 | -9/Mines | Deemed a non-threat by the Exiles lab entrance 1206 | -9/Mines | Learned location of Storage (-8) 1378 | -9/Mines | Build established: Scavenger-Tank 1561 | -9/Mines | Received a Rocket Launcher from a helpful Derelict 1653 | -9/Mines | Discovered new exit (range 6) 1689 | -9/Mines | Discovered new exit (range 11) 1766 | -9/Mines | Identified exit to Exiles 1882 | -9/Mines | Entered Materials 1882 | -8/Materials | Evolved 2 slots: Propulsion x1, Weapon x1 1996 | -8/Materials | Lost 5 parts (2u3w) 2057 | -8/Materials | Lost 7 parts (1p3n3w) 2596 | -8/Materials | Discovered new exit (range 3) 2669 | -8/Materials | Identified exit to Storage 2739 | -8/Materials | Entered Storage 3225 | -8/Storage | Identified exit to Factory 3245 | -8/Storage | Assisted by bots powering up and referring to "LRC-V3" 3353 | -8/Storage | Lost 3 allies 3425 | -8/Storage | Entered Factory 3425 | -7/Factory | Accompanied by 5 allies 3425 | -7/Factory | Evolved 2 slots: Utility x2 3636 | -7/Factory | Lost 4 allies 3883 | -7/Factory | Build established: Gunner 4204 | -7/Factory | Sucked down chute 4204 | -7/Factory | Entered Waste 4214 | -7/Waste | Spotted C-40 Crusher 4219 | -7/Waste | EMP discharged 4227 | -7/Waste | Spotted C-40 Crusher 4232 | -7/Waste | Crushed by Compactor (1 part destroyed, 1 dropped) 4243 | -7/Waste | Spotted C-40 Crusher 4246 | -7/Waste | Spotted C-40 Crusher 4292 | -7/Waste | Crushed by Compactor (1 part destroyed, 2 dropped) 4297 | -7/Waste | Spotted C-40 Crusher 4319 | -7/Waste | EMP discharged 4319 | -7/Waste | System corruption reached 10% 4341 | -7/Waste | Discovered new exit (range 10) 4353 | -7/Waste | Entered Factory 4536 | -7/Factory | Build established: Mutant 4540 | -7/Factory | Identified exit to DSF 4540 | -7/Factory | Entered DSF 4569 | -7/DSF | Additional patrols routed to DSF 4583 | -7/DSF | Discovered new exit (range 20) 4708 | -7/DSF | Entered Factory 4708 | -6/Factory | Evolved 2 slots: Propulsion x1, Utility x1 5758 | -6/Factory | First assault squad dispatched 5937 | -6/Factory | Discovered new exit (range 5) 5938 | -6/Factory | Entered another Factory area 5938 | -5/Factory | Evolved 2 slots: Propulsion x1, Utility x1 6032 | -5/Factory | Build established: Hacker-Sprinter 6083 | -5/Factory | Identified exit to Upper Caves 6083 | -5/Factory | Identified exit to Factory 6611 | -5/Factory | Entered Upper Caves 6625 | -5/Upper Caves | Encountered a Warlord checkpoint 6736 | -5/Upper Caves | Learned Factory garrison access intel 6753 | -5/Upper Caves | Learned location of 1 exit from Factory 6772 | -5/Upper Caves | A Derelict revealed a hidden shortcut to "reach the base" 6779 | -5/Upper Caves | Entered Warlord 6845 | -5/Warlord | Received a Watcher feed algorithm from an ecstatic Tinkerer 6928 | -5/Warlord | Visited the Vortex Lab 6930 | -5/Warlord | Found Prototype Energy Cannon 6930 | -5/Warlord | Identified Vortex Driver 6950 | -5/Warlord | Warlord's base attacked by MAIN.C 6994 | -5/Warlord | P-70 Sage assimilated allied 3N-AMT(M) 6994 | -5/Warlord | Met Warlord 7054 | -5/Warlord | Opened side exit 7060 | -5/Warlord | Discovered new exit (range 9) 7063 | -5/Warlord | Entered Proximity Caves 7109 | -4/Proximity Caves | Spotted B-86 Titan 7198 | -4/Proximity Caves | Attracted the attention of an 0b10 outpost 7203 | -4/Proximity Caves | Spotter reported a threat 7205 | -4/Proximity Caves | Learned location of 1 exit from Research 7248 | -4/Proximity Caves | Discovered exit to Factory (range 15) 7254 | -4/Proximity Caves | Entered Factory 7254 | -4/Factory | Evolved 2 slots: Utility x2 7255 | -4/Factory | Identified exit to Research 7256 | -4/Factory | Loaded intel: 4 garrison access locations 7281 | -4/Factory | Entered Research 7281 | -3/Research | Evolved 2 slots: Propulsion x1, Utility x1 7282 | -3/Research | Identified exit to Research 7285 | -3/Research | Discovered new exit (range 11) 7303 | -3/Research | Entered Testing 7463 | -3/Testing | Found Prototype Processor 7463 | -3/Testing | Identified Spectral Analyzer 7487 | -3/Testing | Spotted Striker 7495 | -3/Testing | Found Prototype Slashing Weapon 7495 | -3/Testing | Identified Vibroblade 7508 | -3/Testing | Spotted Striker 7625 | -3/Testing | Found Spectral Analyzer 7898 | -3/Testing | Found Prototype Hackware 7898 | -3/Testing | Identified Ghost Barrier 7911 | -3/Testing | Discovered exit to Research (range 11) 7936 | -3/Testing | Entered Research 7936 | -2/Research | Accompanied by 1 ally 7936 | -2/Research | Warlord forces began assault on 0b10 7936 | -2/Research | Evolved 2 slots: Power x1, Utility x1 8046 | -2/Research | Research machine network offline 8059 | -2/Research | Fabricated Xenon Bombardment Thruster (x2) 8101 | -2/Research | Spotted B-90 Cyclops 8224 | -2/Research | Discovered new exit (range 16) 8237 | -2/Research | Met up with Warlord 8271 | -2/Research | Borebot progress halted 8318 | -2/Research | Found Gamma Bomb Array 8349 | -2/Research | Discovered new exit (range 4) 8353 | -2/Research | Entered Quarantine 8367 | -2/Quarantine | Identified exit to Access 8391 | -2/Quarantine | Found Alien Artifact 8391 | -2/Quarantine | Identified Subatomic Replicator 8408 | -2/Quarantine | Used Subatomic Replicator to replicate Structural Scanner 8449 | -2/Quarantine | Build established: Wizard-Mutant 8665 | -2/Quarantine | Found Alien Impact Weapon 8665 | -2/Quarantine | Identified Core Stripper 8671 | -2/Quarantine | Met incapacitated Sigix Warrior 8671 | -2/Quarantine | Lockdown squad dispatched 8680 | -2/Quarantine | Acquired the access code to the Sigix quarantine chamber 8680 | -2/Quarantine | Unlocked Sigix quarantine chamber 8709 | -2/Quarantine | Found Alien Artifact 8710 | -2/Quarantine | Identified Phase Redirector 8715 | -2/Quarantine | Spotted Lightning 8781 | -2/Quarantine | Found Alien Artifact 8781 | -2/Quarantine | Identified Terrabomb 8781 | -2/Quarantine | Used Terrabomb 8783 | -2/Quarantine | Spotted Lightning 8791 | -2/Quarantine | Spotted Lightning 8795 | -2/Quarantine | Entered Access 8795 | -1/Access | Evolved 2 slots: Utility x2 8940 | -1/Access | Spotted B-99 Colossus 9454 | -1/Access | Lost 3 parts (2u1w) 9597 | -1/Access | Discovered new exit (range 6) 9599 | -1/Access | Identified exit to Surface 9599 | *** | Destroyed 0b10! Last Messages --------------- 09572_ Slug penetrates Wall. 09573_ Adv. Corruption Screen intercepted 1% system corruption. 09573_ Hacking Suite destroyed. 09576_ Adv. Corruption Screen intercepted 1% system corruption. 09586_ K-01 Serf cleans the Terminal. 09588_ Impulse Thruster Array destroyed. 09589_ Mic. Antimatter Reactor destroyed. 09589_ Adv. Corruption Screen intercepted 1% system corruption. 09592_ K-01 Serf cleans the Terminal. 09595_ Connecting with Terminal... >>Open(Door) Sealed Barrier opened. 09596_ K-01 Serf cleans the Terminal. 09597_ The Access Shell folds into the floor. 09597_ EXIT=FOUND 09599_ EXIT=IDENTIFIED: SURFACE [Achievement: Payload Armed] Map ----- +----------------------------------------------------+ | ?????????????????????????????????????????????????? | | ?????????????????????????????????????????????????? | | ?????????????????????????????????????????????????? | | ?????????????????????????????????????????????????? | | ?????????????????????????????????????????????????? | | ?????????????????????????????????????????????????? | | ?????????????????????????????????????????????????? | | ?????????????????????????????????????????????????? | | ?????????????????????????????????????????????????? | | ?????????????????????????????????????????????????? | | ?????????????????????????????????????????????????? | | ?????????????????????????????????????????????????? | | ?????????????????????????????????????????????????? | | ?????????????????????????????????????????????????? | | ?????????????????????????????????????????????????? | | ?????????????????????????????????????????????????? | | ?????????????????????????????????????????????????? | | ?????????????????????????????????????????????????? | | ?????????????????????????????????????????????????? | | ?????????????????????????????????????????????????? | | ???????????????????#""""""""""#??????????????????? | | ???????????????????# #??????????????????? | | ???????????????????# #??????????????????? | | ???????????????????# #??????????????????? | | ???????????????????# "" #??????????????????? | | ???????????????????# "@ #???????????????#### | | ???????????????????# #???????????????# | | ???????????????????# #??????########## | | ???????????????????# #??????# # | | ??????????????????## ##?????# # | | ??????????????????# #?????# #] | | ??????????????????##"" ##?????# # | | ???????????????????#"" #??????# !# | | ???????????????????#"" #??????# # * | | ???????????????????#T #??????# # | | ???????????????????#"" #??????? #? | | ???????????????????#"" #????????? ??? | | ?????????????????###"" ############+######+ | | ??????? k | | ??????? k R R | | ?????????#####+####################+############## | | ????????????????????????????????? ???????####? | | ????????????????????????????????# ?????# ? | | ????????????????????????????????# ???# | | ????????????????????????????????# """?# | | ????????????????????????????????# """# | | ????????????????????????????????# " # * | | ????????????????????????????????# ##### | | ????????????????????????????????# * # | | ????????????????????????????????+ # | +----------------------------------------------------+ Best States ------------- Heat Dissipation 52 Energy Generation 33 Energy Capacity 310 Matter Stores 500 Matter Capacity 500 Sight Range 24 Robot Scan Range 15 Terrain Scan Density 10 Jamming Range 16 Corruption Block 20 Armor Coverage 375 Utility Shielding 66 Evasion (%) 64 Targeting Accuracy 8 Melee Accuracy 8 Recoil Reduction 4 Offensive Hacking 44 Defensive Hacking 20 Item Schematics ----------------- Hacking Suite | -8/Materials | Scanalyzed Imp. VTOL Module | -8/Materials | Scanalyzed Mic. Fission Core | -5/Factory | Hacked Xenon Bombardment Thruster | -5/Factory | Scanalyzed Lgt. Regenerative Plating | -3/Testing | Hacked Robot Schematics ------------------ None Fabricated ------------ Xenon Bombardment Thruster | x2 | -2/Research Alien Tech Used ----------------- Subatomic Replicator Core Stripper Phase Redirector Terrabomb Achievements -------------- All-out Warlord False Reunion It Was An Accident, I Swear Payload Armed Challenges ------------ None Game ------ Seed RemoteDrainedShielding Manual? 0 Play Time 02:14:54 Cumulative 93.6 hours Start 2024.04.11 @ 13:12:39 End 2024.04.11 @ 15:26:12 Sessions 1 Manual Loads 0 Difficulty Rogue Special Mode None Game No. 95 Rogue 95 Adventurer 0 Explorer 0 Win Type 3 Total 2 Types 1/0/0/1/0/0/0/0/0 Lore% 42 Gallery% 51 Achievement% 39 Wizard Run 0 Options --------- Layout 1 ASCII 0 Keyboard 0 Movement Numpad Keybinds 0 Fullscreen 2 Font 24/X11 Map View 50x35 Zoom Use 0% Tactical HUD 1 Map Filters NONE Filters NONE Steam 0 RUN: 787c1075-d93f-497b-a154-da88301b1cc2